[Event "Early-Titled-Tuesday-Blitz-March-26-2024"]
[Site "Chess.com"]
[Date "2024.03.26"]
[Round "1"]
[White "MITerryble"]
[Black "Predator0608"]
[Result "1-0"]
[WhiteElo "3021"]
[BlackElo "2534"]
[TimeControl "180+1"]
[EndTime "8:07:11 PDT"]
[Termination "MITerryble won by resignation"]

1. d4 {[%clk 0:02:55.7]} 1... Nf6 {[%clk 0:03:00.1]} 2. Bg5 {[%clk 0:02:55.5]}
2... Ne4 {[%clk 0:03:00]} 3. Bf4 {[%clk 0:02:55.4]} 3... d5 {[%clk 0:02:59.9]}
4. f3 {[%clk 0:02:54.6]} 4... Nf6 {[%clk 0:02:59.2]} 5. Nc3 {[%clk 0:02:54.6]}
5... Nc6 {[%clk 0:02:55.3]} 6. e3 {[%clk 0:02:46.7]} 6... Nh5 {[%clk 0:02:49.9]}
7. Bg5 {[%clk 0:02:45.6]} 7... h6 {[%clk 0:02:47.1]} 8. Bh4 {[%clk 0:02:45.9]}
8... g5 {[%clk 0:02:47.7]} 9. Bf2 {[%clk 0:02:46.3]} 9... Bg7 {[%clk 0:02:46.8]}
10. h4 {[%clk 0:02:43.4]} 10... Nf6 {[%clk 0:02:42.7]} 11. hxg5 {[%clk
0:02:38.9]} 11... hxg5 {[%clk 0:02:43.6]} 12. Rxh8+ {[%clk 0:02:39.6]} 12...
Bxh8 {[%clk 0:02:44.1]} 13. Bb5 {[%clk 0:02:31.6]} 13... a6 {[%clk 0:02:40.7]}
14. Bxc6+ {[%clk 0:02:31.4]} 14... bxc6 {[%clk 0:02:41.6]} 15. Nge2 {[%clk
0:02:31.4]} 15... Rb8 {[%clk 0:02:39.8]} 16. Na4 {[%clk 0:02:29.1]} 16... Bg7
{[%clk 0:02:33]} 17. Qd3 {[%clk 0:02:28.7]} 17... Qd7 {[%clk 0:02:21.9]} 18. Ng3
{[%clk 0:02:16.1]} 18... Qd6 {[%clk 0:02:11.7]} 19. b3 {[%clk 0:02:01.2]} 19...
e5 {[%clk 0:01:44.1]} 20. Nf5 {[%clk 0:02:00.9]} 20... Bxf5 {[%clk 0:01:43.3]}
21. Qxf5 {[%clk 0:02:01.8]} 21... exd4 {[%clk 0:01:33.9]} 22. exd4 {[%clk
0:02:01.9]} 22... g4 {[%clk 0:00:51.1]} 23. Nc5 {[%clk 0:01:32.3]} 23... gxf3
{[%clk 0:00:47.7]} 24. Qxf3 {[%clk 0:01:32]} 24... Nd7 {[%clk 0:00:43.5]} 25.
Nd3 {[%clk 0:01:20.4]} 25... Kf8 {[%clk 0:00:36.5]} 26. O-O-O {[%clk 0:01:14.3]}
26... Qf6 {[%clk 0:00:22.5]} 27. c3 {[%clk 0:01:03.8]} 27... Qxf3 {[%clk
0:00:22.1]} 28. gxf3 {[%clk 0:01:04.7]} 28... Bh6+ {[%clk 0:00:22.5]} 29. Kb1
{[%clk 0:01:03]} 29... Bg5 {[%clk 0:00:20.4]} 30. Bg3 {[%clk 0:01:03]} 30... Rc8
{[%clk 0:00:19.6]} 31. Nb4 {[%clk 0:01:03.4]} 31... c5 {[%clk 0:00:18.7]} 32.
dxc5 {[%clk 0:00:58.8]} 32... Nxc5 {[%clk 0:00:19.6]} 33. Rxd5 {[%clk
0:00:58.6]} 33... Ne6 {[%clk 0:00:20.2]} 34. Nxa6 {[%clk 0:00:58.3]} 34... Bf6
{[%clk 0:00:20.7]} 35. c4 {[%clk 0:00:54]} 35... Ke7 {[%clk 0:00:20]} 36. Nb4
{[%clk 0:00:48.9]} 36... Rg8 {[%clk 0:00:19.4]} 37. Nc6+ {[%clk 0:00:47.6]}
37... Ke8 {[%clk 0:00:19.8]} 38. Be5 {[%clk 0:00:47.9]} 38... Bg7 {[%clk
0:00:18.3]} 39. f4 {[%clk 0:00:45.7]} 39... Bh6 {[%clk 0:00:17.9]} 40. f5 {[%clk
0:00:45.6]} 40... Rg1+ {[%clk 0:00:18.6]} 41. Kc2 {[%clk 0:00:45.3]} 41... Rg2+
{[%clk 0:00:18.9]} 42. Kd1 {[%clk 0:00:45.5]} 42... Rg1+ {[%clk 0:00:18.2]} 43.
Ke2 {[%clk 0:00:45.2]} 43... Rg2+ {[%clk 0:00:17]} 44. Kf1 {[%clk 0:00:44.5]}
44... Rxa2 {[%clk 0:00:17.9]} 45. fxe6 {[%clk 0:00:44.6]} 45... fxe6 {[%clk
0:00:18.8]} 46. Rd8+ {[%clk 0:00:42.6]} 46... Kf7 {[%clk 0:00:19.3]} 47. Bxc7
{[%clk 0:00:42.9]} 47... Be3 {[%clk 0:00:19.2]} 48. Rd3 {[%clk 0:00:42.8]} 48...
Bc5 {[%clk 0:00:18.9]} 49. b4 {[%clk 0:00:43]} 49... Bf8 {[%clk 0:00:16.2]} 50.
b5 {[%clk 0:00:42.7]} 50... Rc2 {[%clk 0:00:16.4]} 51. b6 {[%clk 0:00:42.8]} 1-0

[Event "Early-Titled-Tuesday-Blitz-March-26-2024"]
[Site "Chess.com"]
[Date "2024.03.26"]
[Round "1"]
[White "Rud_Makarian"]
[Black "Switzerlamb"]
[Result "1-0"]
[WhiteElo "3102"]
[BlackElo "2554"]
[TimeControl "180+1"]
[EndTime "8:07:12 PDT"]
[Termination "Rud_Makarian won by resignation"]

1. d4 {[%clk 0:03:00.9]} 1... c5 {[%clk 0:02:59.8]} 2. dxc5 {[%clk 0:02:59.1]}
2... e6 {[%clk 0:02:59.5]} 3. g3 {[%clk 0:02:57.9]} 3... Bxc5 {[%clk 0:02:58.8]}
4. c4 {[%clk 0:02:58.1]} 4... Nf6 {[%clk 0:02:58.8]} 5. Bg2 {[%clk 0:02:58.3]}
5... d5 {[%clk 0:02:57.3]} 6. Nf3 {[%clk 0:02:58.1]} 6... O-O {[%clk 0:02:56.4]}
7. cxd5 {[%clk 0:02:56.6]} 7... Qxd5 {[%clk 0:02:55.8]} 8. O-O {[%clk
0:02:54.7]} 8... Nc6 {[%clk 0:02:54.2]} 9. a3 {[%clk 0:02:51.5]} 9... Be7 {[%clk
0:02:52.8]} 10. Nc3 {[%clk 0:02:45.2]} 10... Qxd1 {[%clk 0:02:52.2]} 11. Rxd1
{[%clk 0:02:46.1]} 11... Rd8 {[%clk 0:02:50.7]} 12. Bf4 {[%clk 0:02:43.1]} 12...
a6 {[%clk 0:02:46.5]} 13. Ne5 {[%clk 0:02:24.3]} 13... Nxe5 {[%clk 0:02:44.9]}
14. Bxe5 {[%clk 0:02:25.2]} 14... Kf8 {[%clk 0:02:43.4]} 15. Na4 {[%clk
0:02:21.8]} 15... Rxd1+ {[%clk 0:02:38.4]} 16. Rxd1 {[%clk 0:02:22.7]} 16... Nd7
{[%clk 0:02:38.2]} 17. Bc7 {[%clk 0:02:08.4]} 17... Ke8 {[%clk 0:02:31.3]} 18.
h4 {[%clk 0:02:05.8]} 18... Ra7 {[%clk 0:02:27.8]} 19. Bb6 {[%clk 0:01:50.5]}
19... Ra8 {[%clk 0:02:22]} 20. h5 {[%clk 0:01:45.8]} 20... Bf6 {[%clk
0:02:08.4]} 21. b4 {[%clk 0:01:40.8]} 21... Nxb6 {[%clk 0:01:54.8]} 22. Nxb6
{[%clk 0:01:41.7]} 22... Rb8 {[%clk 0:01:54.6]} 23. Nxc8 {[%clk 0:01:37.2]}
23... Rxc8 {[%clk 0:01:55.5]} 24. Bxb7 {[%clk 0:01:37.9]} 24... Rc3 {[%clk
0:01:55]} 25. a4 {[%clk 0:01:25.2]} 25... Be7 {[%clk 0:01:51.6]} 26. Rd4 {[%clk
0:01:07.7]} 26... Rb3 {[%clk 0:01:49]} 27. Bc6+ {[%clk 0:01:07.5]} 27... Kf8
{[%clk 0:01:49]} 28. b5 {[%clk 0:01:07]} 28... axb5 {[%clk 0:01:45.9]} 29. Bxb5
{[%clk 0:01:07.9]} 29... g6 {[%clk 0:01:33.9]} 30. hxg6 {[%clk 0:01:01.2]} 30...
hxg6 {[%clk 0:01:34.6]} 31. Kg2 {[%clk 0:01:00.4]} 31... Rb2 {[%clk 0:01:33.4]}
32. Rc4 {[%clk 0:00:57.5]} 32... Ra2 {[%clk 0:01:32.7]} 33. Rc8+ {[%clk
0:00:56.2]} 33... Kg7 {[%clk 0:01:32.7]} 34. Rc7 {[%clk 0:00:56.6]} 34... Kf8
{[%clk 0:01:30.9]} 35. Kf3 {[%clk 0:00:56.6]} 35... Bd6 {[%clk 0:01:30.4]} 36.
Rc8+ {[%clk 0:00:52.4]} 36... Kg7 {[%clk 0:01:29.9]} 37. Rc6 {[%clk 0:00:52.8]}
37... Bb4 {[%clk 0:01:29.2]} 38. Rc7 {[%clk 0:00:51.2]} 38... Kf8 {[%clk
0:01:27.9]} 39. Rb7 {[%clk 0:00:50.3]} 39... Bc5 {[%clk 0:01:26.5]} 40. Rb8+
{[%clk 0:00:43.8]} 40... Kg7 {[%clk 0:01:26.5]} 41. Be8 {[%clk 0:00:44.2]} 41...
Ra3+ {[%clk 0:01:25]} 42. e3 {[%clk 0:00:42.7]} 42... Kf6 {[%clk 0:01:21]} 43.
Rb7 {[%clk 0:00:41.3]} 43... Be7 {[%clk 0:01:21.5]} 44. Ke4 {[%clk 0:00:36.6]}
44... g5 {[%clk 0:01:18.7]} 45. g4 {[%clk 0:00:34.6]} 45... Ra2 {[%clk
0:01:18.4]} 46. f4 {[%clk 0:00:34.4]} 46... gxf4 {[%clk 0:01:09.1]} 47. exf4
{[%clk 0:00:35.3]} 47... Kg7 {[%clk 0:00:46.9]} 48. Rxe7 {[%clk 0:00:32.1]}
48... Kf8 {[%clk 0:00:47.5]} 49. Rxf7+ {[%clk 0:00:31.8]} 49... Kxe8 {[%clk
0:00:48.1]} 50. Ra7 {[%clk 0:00:32.7]} 50... Re2+ {[%clk 0:00:44.1]} 51. Kd4
{[%clk 0:00:32.9]} 1-0

[Event "Early-Titled-Tuesday-Blitz-March-26-2024"]
[Site "Chess.com"]
[Date "2024.03.26"]
[Round "1"]
[White "Andreikka"]
[Black "venturov"]
[Result "1-0"]
[WhiteElo "2957"]
[BlackElo "2522"]
[TimeControl "180+1"]
[EndTime "8:07:12 PDT"]
[Termination "Andreikka won by resignation"]

1. d4 {[%clk 0:02:58.9]} 1... Nf6 {[%clk 0:03:00.2]} 2. c4 {[%clk 0:02:58.5]}
2... d6 {[%clk 0:03:00.5]} 3. Nc3 {[%clk 0:02:55.7]} 3... Nbd7 {[%clk
0:03:01.1]} 4. e4 {[%clk 0:02:55.1]} 4... e5 {[%clk 0:03:01.7]} 5. Nf3 {[%clk
0:02:54.5]} 5... g6 {[%clk 0:03:02.1]} 6. Be2 {[%clk 0:02:53.5]} 6... Bg7 {[%clk
0:03:02.8]} 7. O-O {[%clk 0:02:53.4]} 7... O-O {[%clk 0:03:03.4]} 8. Be3 {[%clk
0:02:53.4]} 8... Re8 {[%clk 0:03:02.9]} 9. d5 {[%clk 0:02:53.6]} 9... Nh5 {[%clk
0:03:03.4]} 10. Re1 {[%clk 0:02:49.9]} 10... a5 {[%clk 0:02:33.6]} 11. Nd2
{[%clk 0:02:48.1]} 11... Nf4 {[%clk 0:02:32.2]} 12. Bf1 {[%clk 0:02:48.6]} 12...
Nc5 {[%clk 0:02:29.5]} 13. Nb3 {[%clk 0:02:48.9]} 13... b6 {[%clk 0:02:26.6]}
14. Nxc5 {[%clk 0:02:32.3]} 14... bxc5 {[%clk 0:02:22.1]} 15. b3 {[%clk
0:02:32.5]} 15... f5 {[%clk 0:02:17]} 16. g3 {[%clk 0:02:29.5]} 16... fxe4
{[%clk 0:01:28.2]} 17. Nxe4 {[%clk 0:02:30.4]} 17... Bf5 {[%clk 0:01:26.4]} 18.
f3 {[%clk 0:02:25.8]} 18... Bxe4 {[%clk 0:01:00.7]} 19. fxe4 {[%clk 0:02:25.1]}
19... Nh5 {[%clk 0:00:56.9]} 20. a4 {[%clk 0:02:19.2]} 20... Rf8 {[%clk
0:00:56.3]} 21. Be2 {[%clk 0:02:19]} 21... Nf6 {[%clk 0:00:55.5]} 22. Bf3 {[%clk
0:02:13.6]} 22... Qd7 {[%clk 0:00:53.2]} 23. Kg2 {[%clk 0:02:13.1]} 23... Rab8
{[%clk 0:00:46.6]} 24. Rb1 {[%clk 0:02:12.8]} 24... h5 {[%clk 0:00:45.5]} 25. h3
{[%clk 0:02:12.5]} 25... Kh7 {[%clk 0:00:44.5]} 26. Qc1 {[%clk 0:02:09]} 26...
Rf7 {[%clk 0:00:41.8]} 27. Bd2 {[%clk 0:02:03.8]} 27... Rbf8 {[%clk 0:00:32.9]}
28. Re3 {[%clk 0:02:04.4]} 28... g5 {[%clk 0:00:30]} 29. Qd1 {[%clk 0:01:49.5]}
29... g4 {[%clk 0:00:29.4]} 30. hxg4 {[%clk 0:01:48.5]} 30... Nxg4 {[%clk
0:00:24.3]} 31. Rd3 {[%clk 0:01:43.9]} 31... Bh6 {[%clk 0:00:20.4]} 32. Bxh6
{[%clk 0:01:33.7]} 32... Kxh6 {[%clk 0:00:21.3]} 33. Qd2+ {[%clk 0:01:34.2]}
33... Kg6 {[%clk 0:00:20.9]} 34. Rh1 {[%clk 0:01:35.1]} 34... Rf6 {[%clk
0:00:14.8]} 35. Rh4 {[%clk 0:01:31.9]} 35... Qf7 {[%clk 0:00:12.2]} 36. Qe2
{[%clk 0:01:29.9]} 36... Kg5 {[%clk 0:00:06.5]} 37. Rh1 {[%clk 0:01:24.6]} 37...
Kg6 {[%clk 0:00:04.3]} 38. Rf1 {[%clk 0:01:24.1]} 38... Kg5 {[%clk 0:00:04.1]}
39. Qd2+ {[%clk 0:01:23.6]} 39... Kg6 {[%clk 0:00:04.4]} 40. Qxa5 {[%clk
0:01:23.6]} 40... Nh2 {[%clk 0:00:03]} 41. Kxh2 {[%clk 0:01:20.9]} 41... h4
{[%clk 0:00:02.1]} 42. Qe1 {[%clk 0:01:15.2]} 42... Qh7 {[%clk 0:00:01.2]} 43.
Kg2 {[%clk 0:01:13]} 43... Kf7 {[%clk 0:00:02.1]} 44. Bg4 {[%clk 0:01:10.7]}
44... Ke7 {[%clk 0:00:03]} 45. Rxf6 {[%clk 0:01:10.5]} 45... Rxf6 {[%clk
0:00:03.9]} 46. Rf3 {[%clk 0:01:11.1]} 46... hxg3 {[%clk 0:00:04]} 47. Rxf6
{[%clk 0:01:05.5]} 47... Qh2+ {[%clk 0:00:04.2]} 48. Kf3 {[%clk 0:01:06]} 48...
Kxf6 {[%clk 0:00:03.2]} 49. Qxg3 {[%clk 0:01:06.4]} 49... Qh1+ {[%clk
0:00:03.2]} 50. Qg2 {[%clk 0:01:03.7]} 50... Qd1+ {[%clk 0:00:03.6]} 51. Kg3
{[%clk 0:01:02.4]} 51... Qe1+ {[%clk 0:00:04.1]} 52. Qf2+ {[%clk 0:01:02.7]}
52... Qxf2+ {[%clk 0:00:04.4]} 53. Kxf2 {[%clk 0:01:03.6]} 1-0

[Event "Early-Titled-Tuesday-Blitz-March-26-2024"]
[Site "Chess.com"]
[Date "2024.03.26"]
[Round "1"]
[White "Donskov_AN"]
[Black "Meri-Arabidze"]
[Result "1-0"]
[WhiteElo "2357"]
[BlackElo "2666"]
[TimeControl "180+1"]
[EndTime "8:07:12 PDT"]
[Termination "Donskov_AN won by checkmate"]

1. e4 {[%clk 0:02:59.4]} 1... e5 {[%clk 0:03:00.3]} 2. Nf3 {[%clk 0:02:59.6]}
2... Nc6 {[%clk 0:03:00.6]} 3. Nc3 {[%clk 0:02:59.7]} 3... Nf6 {[%clk
0:03:00.3]} 4. d4 {[%clk 0:03:00.1]} 4... exd4 {[%clk 0:03:00.3]} 5. Nxd4 {[%clk
0:03:01]} 5... Bb4 {[%clk 0:03:00]} 6. Nxc6 {[%clk 0:03:01.2]} 6... bxc6 {[%clk
0:03:00.4]} 7. Bd3 {[%clk 0:03:01.7]} 7... d5 {[%clk 0:02:55.2]} 8. exd5 {[%clk
0:03:02.6]} 8... cxd5 {[%clk 0:02:55.5]} 9. O-O {[%clk 0:03:02.8]} 9... O-O
{[%clk 0:02:55.8]} 10. h3 {[%clk 0:03:03.2]} 10... h6 {[%clk 0:02:55.1]} 11. Qf3
{[%clk 0:03:03.3]} 11... c6 {[%clk 0:02:55.2]} 12. Bf4 {[%clk 0:03:03.4]} 12...
Bd6 {[%clk 0:02:54.1]} 13. Ne2 {[%clk 0:03:03.3]} 13... Rb8 {[%clk 0:02:53.5]}
14. b3 {[%clk 0:03:03.5]} 14... c5 {[%clk 0:02:49.5]} 15. Rad1 {[%clk
0:03:02.5]} 15... Bb7 {[%clk 0:02:49.4]} 16. Bxd6 {[%clk 0:03:01.8]} 16... Qxd6
{[%clk 0:02:49.4]} 17. Qf4 {[%clk 0:03:02.7]} 17... Rbd8 {[%clk 0:02:37.6]} 18.
Qxd6 {[%clk 0:03:02.2]} 18... Rxd6 {[%clk 0:02:38.5]} 19. Nf4 {[%clk 0:03:00.3]}
19... Rfd8 {[%clk 0:02:38.3]} 20. Rfe1 {[%clk 0:02:55.9]} 20... c4 {[%clk
0:02:27.2]} 21. Bf1 {[%clk 0:02:54.8]} 21... c3 {[%clk 0:02:15.4]} 22. Rd4
{[%clk 0:02:52.1]} 22... Ne4 {[%clk 0:02:07.8]} 23. Re3 {[%clk 0:02:38.3]} 23...
g5 {[%clk 0:01:44.5]} 24. Ne2 {[%clk 0:02:38.6]} 24... f5 {[%clk 0:01:35.5]} 25.
Nxc3 {[%clk 0:02:36.7]} 25... f4 {[%clk 0:01:35.6]} 26. Red3 {[%clk 0:02:19.5]}
26... Nc5 {[%clk 0:01:26.6]} 27. Rd1 {[%clk 0:02:18.9]} 27... Ne6 {[%clk
0:01:26.2]} 28. R4d2 {[%clk 0:02:19]} 28... a6 {[%clk 0:01:06.1]} 29. Ne4 {[%clk
0:01:55.7]} 29... Rb6 {[%clk 0:01:04.6]} 30. Nf6+ {[%clk 0:01:54.8]} 30... Kf7
{[%clk 0:01:04.9]} 31. Nxd5 {[%clk 0:01:54.5]} 31... Rbd6 {[%clk 0:01:01.1]} 32.
c4 {[%clk 0:01:51.4]} 32... Nc7 {[%clk 0:00:54.3]} 33. Be2 {[%clk 0:01:50]}
33... a5 {[%clk 0:00:41.4]} 34. Bf3 {[%clk 0:01:47.6]} 34... Ne6 {[%clk
0:00:41.1]} 35. Kf1 {[%clk 0:01:25.5]} 35... Nc5 {[%clk 0:00:40.9]} 36. Ke1
{[%clk 0:01:19.5]} 36... Kg7 {[%clk 0:00:38.5]} 37. Re2 {[%clk 0:01:11.9]} 37...
Kf8 {[%clk 0:00:28.2]} 38. Rd4 {[%clk 0:01:10.2]} 38... Ne6 {[%clk 0:00:27.5]}
39. Rde4 {[%clk 0:01:04.7]} 39... Nc5 {[%clk 0:00:25.1]} 40. Re7 {[%clk
0:01:04.4]} 40... Bc6 {[%clk 0:00:22.7]} 41. Kd2 {[%clk 0:01:03.6]} 41... Na6
{[%clk 0:00:16.6]} 42. Kc3 {[%clk 0:01:02.9]} 42... Nc5 {[%clk 0:00:14.4]} 43.
Rh7 {[%clk 0:00:59.6]} 43... R8d7 {[%clk 0:00:07.6]} 44. Rh8+ {[%clk 0:00:52.2]}
44... Kg7 {[%clk 0:00:07.6]} 45. Ree8 {[%clk 0:00:53.1]} 45... Ne6 {[%clk
0:00:02.9]} 46. Reg8+ {[%clk 0:00:51.5]} 46... Kf7 {[%clk 0:00:03.1]} 47. Bh5#
{[%clk 0:00:52.3]} 1-0

[Event "Early-Titled-Tuesday-Blitz-March-26-2024"]
[Site "Chess.com"]
[Date "2024.03.26"]
[Round "1"]
[White "SharapovEvgeny"]
[Black "jefferyx"]
[Result "1/2-1/2"]
[WhiteElo "2562"]
[BlackElo "3098"]
[TimeControl "180+1"]
[EndTime "8:07:15 PDT"]
[Termination "Game drawn - insufficient material"]

1. e4 {[%clk 0:02:59.9]} 1... c5 {[%clk 0:02:44.4]} 2. Nf3 {[%clk 0:02:58.8]}
2... d6 {[%clk 0:02:41.1]} 3. d4 {[%clk 0:02:58.4]} 3... cxd4 {[%clk 0:02:42]}
4. Nxd4 {[%clk 0:02:58.7]} 4... Nf6 {[%clk 0:02:42.6]} 5. f3 {[%clk 0:02:59.3]}
5... Nc6 {[%clk 0:02:38]} 6. c4 {[%clk 0:02:59]} 6... e6 {[%clk 0:02:38.3]} 7.
Nc3 {[%clk 0:02:58.8]} 7... Be7 {[%clk 0:02:38.6]} 8. Be3 {[%clk 0:02:59.2]}
8... O-O {[%clk 0:02:39]} 9. Be2 {[%clk 0:02:59.6]} 9... d5 {[%clk 0:02:38.9]}
10. cxd5 {[%clk 0:02:59.5]} 10... exd5 {[%clk 0:02:39.8]} 11. Nxc6 {[%clk
0:02:59.8]} 11... bxc6 {[%clk 0:02:40.7]} 12. exd5 {[%clk 0:03:00.2]} 12... Nxd5
{[%clk 0:02:40]} 13. Nxd5 {[%clk 0:03:00.1]} 13... cxd5 {[%clk 0:02:40.1]} 14.
O-O {[%clk 0:02:59.6]} 14... Bf6 {[%clk 0:02:37.1]} 15. Bd4 {[%clk 0:02:59.5]}
15... Re8 {[%clk 0:02:37.6]} 16. Rf2 {[%clk 0:02:57.1]} 16... Rb8 {[%clk
0:02:23.2]} 17. Bf1 {[%clk 0:02:53.3]} 17... Re1 {[%clk 0:02:08.5]} 18. Qxe1
{[%clk 0:02:35.8]} 18... Bxd4 {[%clk 0:02:08.4]} 19. Kh1 {[%clk 0:02:35.6]}
19... Bxf2 {[%clk 0:02:06.2]} 20. Qxf2 {[%clk 0:02:35.4]} 20... a5 {[%clk
0:02:03.6]} 21. Rd1 {[%clk 0:02:31.2]} 21... Be6 {[%clk 0:02:03.3]} 22. b3
{[%clk 0:02:28.4]} 22... Rc8 {[%clk 0:02:02.3]} 23. Bd3 {[%clk 0:02:07.3]} 23...
g6 {[%clk 0:01:55.2]} 24. Qd4 {[%clk 0:02:02.7]} 24... Qf8 {[%clk 0:01:36.5]}
25. h4 {[%clk 0:01:37.8]} 25... Qb4 {[%clk 0:01:35.4]} 26. Qxb4 {[%clk
0:01:35.7]} 26... axb4 {[%clk 0:01:36.3]} 27. Kg1 {[%clk 0:01:33.3]} 27... Kg7
{[%clk 0:01:36.2]} 28. Kf2 {[%clk 0:01:33.5]} 28... Kf6 {[%clk 0:01:36.8]} 29.
Ke3 {[%clk 0:01:32.5]} 29... Ke5 {[%clk 0:01:37.3]} 30. f4+ {[%clk 0:01:32.2]}
30... Kd6 {[%clk 0:01:37.9]} 31. Kd4 {[%clk 0:01:29.2]} 31... Bg4 {[%clk
0:01:26.9]} 32. Ra1 {[%clk 0:01:24.4]} 32... Ra8 {[%clk 0:01:01.9]} 33. g3
{[%clk 0:01:20.5]} 33... Bf5 {[%clk 0:00:55.3]} 34. Bxf5 {[%clk 0:01:03.9]}
34... gxf5 {[%clk 0:00:56.2]} 35. Re1 {[%clk 0:01:04.1]} 35... Rxa2 {[%clk
0:00:54.9]} 36. Re5 {[%clk 0:01:03.8]} 36... Rd2+ {[%clk 0:00:55]} 37. Ke3
{[%clk 0:01:03.2]} 37... Rg2 {[%clk 0:00:55.1]} 38. Rxf5 {[%clk 0:00:57]} 38...
Rxg3+ {[%clk 0:00:54.2]} 39. Kd4 {[%clk 0:00:56.9]} 39... Rxb3 {[%clk
0:00:54.6]} 40. Rxf7 {[%clk 0:00:56]} 40... Rb1 {[%clk 0:00:54.8]} 41. Rf6+
{[%clk 0:00:52.7]} 41... Ke7 {[%clk 0:00:54.9]} 42. Rh6 {[%clk 0:00:51.2]} 42...
Rd1+ {[%clk 0:00:54.3]} 43. Ke5 {[%clk 0:00:46.5]} 43... Kd7 {[%clk 0:00:46.9]}
44. Rb6 {[%clk 0:00:37.9]} 44... d4 {[%clk 0:00:35.4]} 45. Rxb4 {[%clk
0:00:36.6]} 45... d3 {[%clk 0:00:36]} 46. Ke4 {[%clk 0:00:31.8]} 46... d2 {[%clk
0:00:32.8]} 47. Kd3 {[%clk 0:00:29.3]} 47... Ke6 {[%clk 0:00:32.1]} 48. Kc2
{[%clk 0:00:22.4]} 48... Rh1 {[%clk 0:00:31.1]} 49. Kxd2 {[%clk 0:00:22.3]}
49... Kf5 {[%clk 0:00:31.6]} 50. Rb5+ {[%clk 0:00:20]} 50... Kxf4 {[%clk
0:00:29.7]} 51. Rh5 {[%clk 0:00:19.7]} 51... Kg4 {[%clk 0:00:30.3]} 52. Rxh7
{[%clk 0:00:19.7]} 52... Rxh4 {[%clk 0:00:31.2]} 53. Rxh4+ {[%clk 0:00:19.6]}
53... Kxh4 {[%clk 0:00:32.1]} 1/2-1/2

[Event "Early-Titled-Tuesday-Blitz-March-26-2024"]
[Site "Chess.com"]
[Date "2024.03.26"]
[Round "1"]
[White "AlexTruskavetsky"]
[Black "ChempionBg"]
[Result "1-0"]
[WhiteElo "2690"]
[BlackElo "2359"]
[TimeControl "180+1"]
[EndTime "8:07:17 PDT"]
[Termination "AlexTruskavetsky won by checkmate"]

1. d4 {[%clk 0:03:00.7]} 1... Nf6 {[%clk 0:02:58.5]} 2. c4 {[%clk 0:03:00.4]}
2... g6 {[%clk 0:02:58.7]} 3. Nc3 {[%clk 0:03:00.3]} 3... Bg7 {[%clk 0:02:59.3]}
4. e4 {[%clk 0:03:00.4]} 4... d6 {[%clk 0:02:59.6]} 5. f4 {[%clk 0:03:00.9]}
5... O-O {[%clk 0:02:57]} 6. Nf3 {[%clk 0:02:59.6]} 6... c5 {[%clk 0:02:51.5]}
7. d5 {[%clk 0:02:59.1]} 7... e6 {[%clk 0:02:46.7]} 8. Bd3 {[%clk 0:02:58.3]}
8... exd5 {[%clk 0:02:46.3]} 9. cxd5 {[%clk 0:02:59.2]} 9... Bg4 {[%clk
0:02:42.8]} 10. O-O {[%clk 0:02:58.8]} 10... Nbd7 {[%clk 0:02:42.6]} 11. h3
{[%clk 0:02:58.5]} 11... Bxf3 {[%clk 0:02:42.9]} 12. Qxf3 {[%clk 0:02:59.4]}
12... Re8 {[%clk 0:02:42]} 13. Bd2 {[%clk 0:02:57.9]} 13... a6 {[%clk
0:02:22.7]} 14. a4 {[%clk 0:02:33.6]} 14... c4 {[%clk 0:02:01.7]} 15. Bxc4
{[%clk 0:02:28.6]} 15... Qb6+ {[%clk 0:01:56.3]} 16. Kh2 {[%clk 0:02:27.6]}
16... Qxb2 {[%clk 0:01:56.3]} 17. Qe2 {[%clk 0:02:01.5]} 17... Nxe4 {[%clk
0:01:22.2]} 18. Nxe4 {[%clk 0:02:00.9]} 18... f5 {[%clk 0:01:22.4]} 19. Rab1
{[%clk 0:01:15.5]} 19... Qd4 {[%clk 0:01:20.3]} 20. Bd3 {[%clk 0:01:05.3]} 20...
fxe4 {[%clk 0:01:15.9]} 21. Bc2 {[%clk 0:01:05.2]} 21... Nc5 {[%clk 0:00:47.6]}
22. Be3 {[%clk 0:01:03.5]} 22... Qxd5 {[%clk 0:00:45.9]} 23. Bxc5 {[%clk
0:01:00.3]} 23... Qxc5 {[%clk 0:00:44.4]} 24. Rxb7 {[%clk 0:00:57.2]} 24... Rac8
{[%clk 0:00:38.6]} 25. Bb3+ {[%clk 0:00:50]} 25... d5 {[%clk 0:00:38]} 26. Rd7
{[%clk 0:00:47.4]} 26... Kh8 {[%clk 0:00:27.9]} 27. Bxd5 {[%clk 0:00:43.5]}
27... e3 {[%clk 0:00:21.9]} 28. f5 {[%clk 0:00:32.9]} 28... Rc7 {[%clk
0:00:16.5]} 29. Rxc7 {[%clk 0:00:23.9]} 29... Qxc7+ {[%clk 0:00:15.8]} 30. Kh1
{[%clk 0:00:24.4]} 30... Qg3 {[%clk 0:00:09.2]} 31. f6 {[%clk 0:00:19.2]} 31...
Bf8 {[%clk 0:00:05.4]} 32. Qb2 {[%clk 0:00:17.7]} 32... Rd8 {[%clk 0:00:02.7]}
33. f7+ {[%clk 0:00:17.1]} 33... Bg7 {[%clk 0:00:01.6]} 34. f8=Q+ {[%clk
0:00:17.1]} 34... Rxf8 {[%clk 0:00:01.6]} 35. Rxf8# {[%clk 0:00:17.3]} 1-0